Cogmind - Beta 13 @@@ ROGUE MODE // 2024.04.06 @ 13:07:24 Player: Kinga Result: Destroyed by G-47 Trooper with Particle Gun Performance ------------- Evolutions (0) 0 Regions Visited (2) 400 Robots Destroyed (18) 90 Value Destroyed (409) 409 Prototype IDs (0) 0 Alien Tech Used (0) 0 Bonus (0) 0 TOTAL SCORE: 899 Bonus ------- None Cogmind --------- Core Integrity 0/250 Matter 289/300 Energy 241/250 System Corruption 0% Temperature Warm (148) Movement Walking (120) Location -10/Mines Parts ------- > --- POWER (1) -------- Ion Engine > --- PROPULSION (2) --- Aluminum Leg Aluminum Leg > --- UTILITY (2) ------ Medium Storage Unit Transport Network Coupler > --- WEAPON (2) ------- Small Laser Light Assault Rifle > --- INVENTORY (10) --- Light Ion Engine Heat Sink Light Armor Plating Hacking Suite Small Laser Small Laser Datajack Peak State ------------ > --- POWER ------------ Ion Engine > --- PROPULSION ------- Aluminum Leg Aluminum Leg > --- UTILITY ---------- Medium Storage Unit Transport Network Coupler > --- WEAPON ----------- Particle Gun Light Assault Rifle > --- INVENTORY -------- Light Ion Engine Heat Sink Light Armor Plating Hacking Suite Small Laser Small Laser Small Laser Datajack [Rating: 9] Favorites ----------- Power Ion Engine Engine Ion Engine Propulsion Aluminum Leg Treads Light Treads Leg Aluminum Leg Utility Medium Storage Unit Storage Medium Storage Unit Processor Transport Network Coupler Weapon Particle Gun Energy Gun Particle Gun Ballistic Gun Assault Rifle Special Melee Weapon Datajack Build | -11 -10 -10 ------- Run | Yrd Mat Min Slots Evolved . | . . . Power . | . . . Propulsion . | . . . Utility . | . . . Weapon . | . . . Parts Attached 21 | 7 13 1 Power 3 | 1 2 . Engine 3 | 1 2 . Core . | . . . Reactor . | . . . Propulsion 7 | 2 5 . Treads 2 | 2 . . Leg 5 | . 5 . Wheel . | . . . Hover . | . . . Flight . | . . . Utility 3 | 1 2 . Device . | . . . Storage 2 | 1 1 . Processor 1 | . 1 . Hackware . | . . . Protection . | . . . Artifact . | . . . Weapon 8 | 3 4 1 Energy Gun 4 | 1 2 1 Energy Cannon . | . . . Ballistic Gun 3 | 2 1 . Ballistic Cannon . | . . . Launcher . | . . . Special Weapon . | . . . Impact Weapon . | . . . Slashing Weapon . | . . . Piercing Weapon . | . . . Special Melee Weapon 1 | . 1 . Unidentified Prototypes . | . . . Parts Lost 9 | . 8 1 Power 2 | . 2 . Propulsion 4 | . 4 . Utility . | . . . Weapon 3 | . 2 1 Highest Loss Streak 5 | . 5 1 To Critical Strikes . | . . . Average Slot Usage (%) 90 | . 88 100 Engine 13 | . 13 14 Treads 5 | . 6 . Leg 20 | . 19 28 Storage 14 | . 14 14 Processor 7 | . 6 14 Energy Gun 15 | . 15 14 Ballistic Gun 9 | . 9 14 Special Melee Weapon 2 | . 3 . Naked Turns . | . . . Heaviest Build 19 | 12 19 19 Greatest Support 40 | 40 40 20 Greatest Overweight (x) 6 | . 6 . Average Overweight (x) . | . . . Largest Inventory Capacity 10 | 8 10 10 Average Capacity 9 | 7 9 10 Most Carried 8 | 2 8 8 Average Carried 4 | 1 3 7 Final Capacity 10 | 8 10 10 Final Carried 8 | 2 8 7 Class Distribution -------------------- 50% | Scavenger-Mutant 49% | Mutant Dominant Class ---------------- Mutant | -10/Materials Scavenger-Mutant | -10/Mines Resources | -11 -10 -10 ----------- Run | Yrd Mat Min Matter Collected 478 | 221 257 . Remotely . | . . . Salvage Created 574 | . 574 . Parts 42 | . 42 . Haulers Intercepted 2 | . 2 . Recyclers Shooed 1 | . 1 . Parts Field Recycled . | . . . Retrieved Matter . | . . . Parts Self-Destructed . | . . . Prevented . | . . . Kills | -11 -10 -10 ------- Run | Yrd Mat Min Combat Hostiles Destroyed 15 | . 15 . Guns 15 | . 15 . Classes Destroyed 4 | . 4 . Hauler 2 | . 2 . Operator 1 | . 1 . Swarmer 6 | . 6 . Grunt 9 | . 9 . Best Kill Streak 6 | . 6 . Combat Bots Only 6 | . 6 . Max Kills in Single Turn 1 | . 1 . Gunslinging . | . . . Exploded . | . . . Melee . | . . . Uniques/NPCs Destroyed . | . . . Combat | -11 -10 -10 -------- Run | Yrd Mat Min Hostile Shots Fired 151 | . 141 10 Missed 41 | . 39 2 Damage Taken 1229 | . 1123 106 Core 260 | . 203 57 Absorbed by Shields . | . . . Core Remaining (%) 100 | 100 . . Volleys Fired 60 | . 56 4 Largest 2 | . 2 2 Hottest 105 | . 105 85 Shots Fired 110 | . 102 8 Gun 110 | . 102 8 Cannon . | . . . Launcher . | . . . Special . | . . . Kinetic 44 | . 40 4 Thermal 66 | . 62 4 Explosive . | . . . Electromagnetic . | . . . Robot Hit Streak 7 | . 7 7 Robot Miss Streak 7 | . 7 1 Penetration Max . | . . . Secondary Targets 4 | . 4 . Max Gunslinging Chain 1 | . 1 . Shots Hit Robots 70 | . 63 7 Core Hits 29 | . 28 1 Critical Kills 1 | . 1 . Critical Parts Destroyed . | . . . Critical Strikes 3 | . 3 . Burn 2 | . 2 . Destroy 1 | . 1 . Melee Attacks 7 | . 7 . Impact . | . . . Slashing . | . . . Piercing . | . . . Sneak Attacks 4 | . 4 . Combat Hostiles . | . . . Follow-up Attacks . | . . . Damage Inflicted 892 | . 817 75 Guns 891 | . 816 75 Cannons . | . . . Explosions . | . . . Melee . | . . . Ramming 1 | . 1 . Kinetic 366 | . 332 34 Thermal 525 | . 484 41 Explosive . | . . . Electromagnetic . | . . . Impact . | . . . Slashing . | . . . Piercing . | . . . Highest Corruption . | . . . Average Corruption . | . . . Corruption Purged . | . . . Corruption Blocked . | . . . Overload Shots . | . . . Overflow Damage . | . . . Projectiles . | . . . Explosions . | . . . Melee . | . . . Knockbacks . | . . . Impact . | . . . Kinetic . | . . . Secondary . | . . . Self-Inflicted Damage . | . . . Shots . | . . . Rammed . | . . . Targets Rammed 1 | . 1 . Kicked 1 | . 1 . Crushed . | . . . Highest Temperature 302 | . 302 140 Average Temperature 107 | . 108 88 Received Heat Transfer 540 | . 474 66 Effects 2 | . 2 . Energy Bleed 2 | . 2 . Siege Activations . | . . . Robots Corrupted . | . . . Combat Hostiles . | . . . Parts Fried . | . . . Impact Corruptions . | . . . Robots Melted . | . . . Combat Hostiles . | . . . Parts Melted 4 | . 4 . Heat Transferred 1399 | . 1300 99 Parts Sabotaged . | . . . Parts Stolen . | . . . Parts Stripped . | . . . Power Chain Reactions . | . . . Alert | -11 -10 -10 ------- Run | Yrd Mat Min Peak Influence 295 | . 295 85 Initial 85 | . . 85 Average 114 | . 132 84 Maximum Alert Level 1 | . 1 . Low Security (%) 74 | 100 66 100 Level 1 25 | . 33 . Level 2 . | . . . Level 3 . | . . . Level 4 . | . . . Level 5 . | . . . High Security . | . . . Max Security . | . . . Squads Dispatched 3 | . 3 . Investigation 2 | . 2 . Extermination . | . . . Reinforcement 1 | . 1 . Assault . | . . . Garrison . | . . . Intercept . | . . . Searches Triggered . | . . . Construction Impeded . | . . . Haulers Reinforced . | . . . Active Scanning Responses . | . . . Cargo Convoy Interrupts . | . . . Stealth | -11 -10 -10 --------- Run | Yrd Mat Min Distress Signals 2 | . 2 . Communications Jammed . | . . . Distress Signals . | . . . Times Spotted 30 | . 28 2 Peak Tracking Total 7 | . 7 2 Tactical Retreats 2 | . 2 . Traps | -11 -10 -10 ------- Run | Yrd Mat Min Traps Triggered 4 | . 4 . Indirectly . | . . . Trap Hack Attempts . | . . . Triggered . | . . . Disarmed . | . . . Reprogrammed . | . . . Reused . | . . . Traps Extracted . | . . . Installed . | . . . Triggered . | . . . Machines | -11 -10 -10 ---------- Run | Yrd Mat Min Machines Disabled 1 | . 1 . Max in Single Turn 1 | . 1 . Machines Repaired . | . . . Machines Dismantled . | . . . Machines Sabotaged . | . . . Overloaded Fab Kills . | . . . Hacking | -11 -10 -10 --------- Run | Yrd Mat Min Machines Accessed 1 | . 1 . Terminals 1 | . 1 . Fabricators . | . . . Repair Stations . | . . . Recycling Units . | . . . Scanalyzers . | . . . Garrison Access . | . . . Total Hacks 3 | . 3 . Successful 1 | . 1 . Failed 2 | . 2 . Catastrophic . | . . . Database Lockouts . | . . . Manual 3 | . 3 . Terminals 3 | . 3 . Fabricators . | . . . Repair Stations . | . . . Recycling Units . | . . . Scanalyzers . | . . . Garrison Access . | . . . Terminal Hacks . | . . . Fabricator Hacks . | . . . Repair Station Hacks . | . . . Recycling Unit Hacks . | . . . Scanalyzer . | . . . Garrison Access Hacks . | . . . Unauthorized Hacks 1 | . 1 . Terminals 1 | . 1 . Botnet 1 | . 1 . Fabricators . | . . . Repair Stations . | . . . Recycling Units . | . . . Scanalyzers . | . . . Garrison Access . | . . . Data Cores Recovered . | . . . Used . | . . . Hacking Detections 1 | . 1 . Full Trace Events . | . . . Feedback Events . | . . . Feedback Blocked . | . . . Robot Schematics Acquired . | . . . Robots Built . | . . . Authchips . | . . . Time . | . . . Total Robot Build Rating . | . . . Part Schematics Acquired . | . . . Parts Built . | . . . Authchips . | . . . Time . | . . . Total Part Build Rating . | . . . Parts Repaired . | . . . Time . | . . . Parts Recycled . | . . . Recycled Matter . | . . . Retrieved Matter . | . . . Retrieved Components . | . . . Parts Scanalyzed . | . . . Part Schematics Acquired . | . . . Parts Damaged . | . . . Bothacking | -11 -10 -10 ------------ Run | Yrd Mat Min Used RIF Installer . | . . . Robots Hacked 1 | . 1 . Non-combat 1 | . 1 . Combat . | . . . Robot Hacks Applied 1 | . 1 . parse_system 1 | . 1 . Relay Couplers Released . | . . . Fabnet Peak Effective % . | . . . Robots Rewired . | . . . Allies Hacked . | . . . Hacks Repelled . | . . . Allies | -11 -10 -10 -------- Run | Yrd Mat Min Total Allies . | . . . Largest Group . | . . . Highest-Rated Group . | . . . Highest-Rated Ally . | . . . Total Orders . | . . . Ally Attacks . | . . . Total Damage . | . . . Kills . | . . . Allies Corrupted . | . . . Allies Melted . | . . . Intel | -11 -10 -10 ------- Run | Yrd Mat Min Robot Analysis Total . | . . . Derelict Logs Recovered 1 | . . 1 Drone Launches . | . . . Drone Recoveries . | . . . Exploration | -11 -10 -10 ------------- Run | Yrd Mat Min Turns Passed 978 | 76 755 147 Spaces Moved 573 | 44 416 113 Core 9 | 5 4 . Treads 111 | 39 72 . Legs 453 | . 340 113 Wheels . | . . . Hover . | . . . Flight . | . . . Fastest Speed 50 | 50 120 120 Average Speed 130 | 147 130 120 Slowest Speed 350 | 160 350 120 Overloaded Moves . | . . . Propulsion Burnouts . | . . . Robots Hopped . | . . . Cave-ins Triggered . | . . . Exploration Rate (%) 35 | 5 61 40 Regions Visited 2 Branch Regions 1 Pre-discovered Areas . | . . . Known Exits Taken . | . . . Unknown Exits Taken 2 | 1 1 . Scrap Searched . | . . . Spaces Dug . | . . . Terrain Destroyed . | . . . Melee . | . . . Projectile . | . . . AOE . | . . . Terrain Rammed . | . . . Walls Destroyed . | . . . Machines Disabled . | . . . Actions | -11 -10 -10 --------- Run | Yrd Mat Min Total 689 | 52 518 119 Wait 16 | . 15 1 Move 571 | 43 415 113 Hop . | . . . Pick Up 11 | 2 9 . Fast Attach 14 | 6 8 . Attach 5 | . 4 1 Detach 1 | . 1 . Swap 2 | 1 1 . Drop 1 | . 1 . Fire 60 | . 56 4 Melee 7 | . 7 . Ram . | . . . Kick 1 | . 1 . Crush . | . . . Escape Stasis . | . . . Rewire . | . . . Trap . | . . . Miscellaneous . | . . . Route ------- -11/Scrapyard -10/Materials (discovered 3 exits: [*Mat x2] / [*Min]) -10/Mines (discovered 1 exit: [*Mat]) History --------- Turn | Location | Event 10 | -11/Scrapyard | Discovered new exit (range 15) 77 | -11/Scrapyard | Entered Materials 286 | -10/Materials | Lost 5 parts (1p2n2w) 314 | -10/Materials | Build established: Mutant 403 | -10/Materials | Discovered new exit (range 8) 438 | -10/Materials | Core integrity fell below 50% 562 | -10/Materials | Discovered new exit (range 14) 654 | -10/Materials | Discovered new exit (range 15) 695 | -10/Materials | Core integrity fell below 20% 795 | -10/Materials | Build established: Scavenger-Mutant 832 | -10/Materials | Entered Mines 961 | -10/Mines | Learned Materials garrison access intel 967 | -10/Mines | Discovered new exit (range 12) 979 | -10/Mines | Destroyed by G-47 Trooper with Particle Gun Last Messages --------------- Overheating: Energy bleed (-42). G-34 Mercenary destroyed. Acquired Aluminum Leg. Acquired 21 matter. R-06 Scavenger collects Aluminum Leg. K-01 Serf collects debris. Acquired Aluminum Leg. Acquired 10 matter. K-01 Serf collects debris. Acquired Sml. Laser. K-01 Serf collects debris. Acquired Lgt. Ion Engine. LOCATION=UNKNOWN GOAL=ESCAPE Something is scanning the area. K-01 Serf collects debris. Acquired derelict log, extracted data. Data stored: Materials garrison access intel. EXIT=FOUND Particle Gun destroyed. Map ----- +----------------------------------------------------+ | | | | | | | | | | | | | ???????????????????????????????????????? | | ???????????????????????????????????????? | | ???????????????????????????????????????? | | ???????????????????????????????????????? | | ??????????????????????? ???????????????? | | ????????????????????? ??????????????? | | ?????????????????? ??????????????? | | ????????????????? ??????????????? | | ?????????????????? ??????????????? | | ?????????????????? < ??????????????? | | ??????????????????? g ??????????????? | | ???????????????????#g ??????????????? | | ???????????????????# #?????????????? | | ???????????????????# ##????????????? | | ???????????????????# #????????????? | | ???????????????????# ##???????????? | | ????????????????????# #???####????? | | ?????????????????????# ???? #????? | | ??????????????????????# #????# #????? | | ?????????????????####### @#????# #????? | | ?????????????????# #????# #????? | | ?????????????????# ##### #????# #????? | | ???????????????????????# #???## ##???? | | ???????????????????????# #???# ##??? | | ???????????????????????# ##### #??? | | ???????????????????????# #??? | | ???????????????????????# ##### #??? | | ???????????????????????# #???## #??? | | ???????????????????????# #????## #??? | | ???????????????????????# #?????# #??? | | ???????????????????????# #?????# ##?? | | ???????????????????????# #?????# #?? | | ???????????????????????# #????## ##? | | ?????????????????????### ???## #? | | ????????????????????## ???# #? | | ????????????????????# #?## ##? | | ????????????????????# ## #####?? | | ?????????????????????# ##?????? | | ??????????????????????## ##?????? | | ???????????????????????###### #?????? | | ????????????????????????????## #?????? | | ????#????????#########??????## #?????? | | ????# ????#### #?????## ##?????? | | ##### ????# """ #????## ##??????? | +----------------------------------------------------+ Best States ------------- Heat Dissipation 25 Energy Generation 10 Energy Capacity 250 Matter Stores 300 Matter Capacity 300 Sight Range 16 Terrain Scan Density 10 Evasion (%) 55 Recoil Reduction 2 Item Schematics ----------------- None Robot Schematics ------------------ None Fabricated ------------ Nothing Alien Tech Used ----------------- None Achievements -------------- None Challenges ------------ None Game ------ Seed CoolantSpikedLoader Manual? 0 Play Time 00:07:51 Cumulative 10.4 hours Start 2024.04.06 @ 13:00:09 End 2024.04.06 @ 13:07:24 Sessions 1 Manual Loads 0 Difficulty Rogue Special Mode None Game No. 18 Rogue 18 Adventurer 0 Explorer 0 Win Type - Total 0 Types 0/0/0/0/0/0/0/0/0 Lore% 12 Gallery% 20 Achievement% 21 Wizard Run 0 Options --------- Layout 1 ASCII 0 Keyboard 0 Movement Numpad Keybinds 0 Fullscreen 1 Font 24/Smallcaps Map View 50x35 Zoom Use 0% Tactical HUD 0 Map Filters NONE Filters NONE Steam 1 RUN: 9cccdc00-97c8-425c-8742-c3a104814e1d